Cogmind - Beta 12 @@@ ROGUE MODE // 2023.08.27 @ 15:38:26 Player: ZOT Result: Destroyed by H-66 Slayer with Gauss Rifle Performance ------------- Evolutions (3) 1500 Regions Visited (9) 1800 Robots Destroyed (71) 355 Value Destroyed (2273) 2273 Prototype IDs (17) 340 Alien Tech Used (0) 0 Bonus (366) 366 TOTAL SCORE: 6634 Bonus ------- Follower Combat Kills 66 Met Data Miner 300 Cogmind --------- Core Integrity 0/700 Matter 300/300 Energy 200/600 System Corruption 20% Temperature Cool (0) Movement Walking (120) Location -6/Proximity Caves Parts ------- > --- POWER (1) -------- (None) > --- PROPULSION (6) --- Enhanced Flexi-carbon Leg > --- UTILITY (4) ------ Medium Storage Unit Advanced Energy Well Machine Analyzer > --- WEAPON (2) ------- Makeshift Spear > --- INVENTORY (10) --- Improved Deuterium Engine Enhanced Flexi-carbon Leg Advanced Particle Charger Hacking Suite Makeshift Hacking Suite System Shield Gauss Rifle Improved Datajack Peak State ------------ > --- POWER ------------ Light Fission Core > --- PROPULSION ------- Improved Medium Treads Flexi-carbon Leg Enhanced Flexi-carbon Leg VTOL Module VTOL Module Cooled VTOL Module > --- UTILITY ---------- Medium Storage Unit Advanced Energy Well Advanced Weight Redist. System Machine Analyzer > --- WEAPON ----------- Gauss Rifle > --- INVENTORY -------- Improved Deuterium Engine Enhanced Flexi-carbon Leg Advanced Particle Charger Hacking Suite Makeshift Hacking Suite System Shield Improved Datajack Makeshift Spear [Rating: 53] Favorites ----------- Power Light Angular Momentum Engine Engine Light Angular Momentum Engine Power Core Light Fission Core Propulsion Hover Unit Treads Light Treads Leg Carbon-fiber Leg Wheel Wheel Hover Unit Hover Unit Flight Unit Cooled VTOL Module Utility Medium Storage Unit Device Seismic Detector Storage Medium Storage Unit Processor Machine Analyzer Hackware System Shield Protection Improved Propulsion Shielding Weapon Beamcaster Energy Gun Beamcaster Energy Cannon Heavy Ion Cannon Ballistic Gun Assault Rifle Ballistic Cannon Improved Light Cannon Launcher Heavy Rocket Launcher Piercing Weapon Makeshift Spear Build | -11 -10 -10 -9 -8 -7 -7 -7 -7 -6 ------- Run | Jun Mat Min Mat Mat Fac Low Low Dat Pro Slots Evolved 6 | . . . 2 2 2 . . . . Power . | . . . . . . . . . . Propulsion 4 | . . . 2 2 . . . . . Utility 2 | . . . . . 2 . . . . Weapon . | . . . . . . . . . . Parts Attached 100 | 6 . . 23 15 27 14 4 . 11 Power 9 | . . . 5 . 1 2 . . 1 Engine 8 | . . . 5 . 1 2 . . . Core 1 | . . . . . . . . . 1 Reactor . | . . . . . . . . . . Propulsion 48 | 2 . . 11 10 15 4 . . 6 Treads 11 | 1 . . 3 2 4 . . . 1 Leg 9 | . . . 2 . 3 1 . . 3 Wheel 6 | 1 . . 2 2 1 . . . . Hover 14 | . . . 4 6 3 . . . 1 Flight 8 | . . . . . 4 3 . . 1 Utility 12 | 2 . . 1 . 5 3 . . 1 Device 4 | 1 . . . . 1 2 . . . Storage 3 | 1 . . 1 . . . . . 1 Processor 3 | . . . . . 3 . . . . Hackware 1 | . . . . . 1 . . . . Protection 1 | . . . . . . 1 . . . Artifact . | . . . . . . . . . . Weapon 31 | 2 . . 6 5 6 5 4 . 3 Energy Gun 7 | . . . 3 3 . 1 . . . Energy Cannon 2 | . . . . . 1 1 . . . Ballistic Gun 13 | 2 . . 2 1 4 1 2 . 1 Ballistic Cannon 2 | . . . 1 1 . . . . . Launcher 5 | . . . . . 1 2 1 . 1 Special Weapon . | . . . . . . . . . . Impact Weapon . | . . . . . . . . . . Slashing Weapon . | . . . . . . . . . . Piercing Weapon 2 | . . . . . . . 1 . 1 Special Melee Weapon . | . . . . . . . . . . Unidentified Prototypes 7 | . . . 1 3 1 . . . 2 Corrupted Parts 3 | . . . . . . 2 1 . . System Corruption 8 | . . . . . . 5 3 . . Parts Lost 47 | . . . 2 2 16 12 2 . 13 Power 4 | . . . . . 1 1 . . 2 Propulsion 27 | . . . 2 2 10 6 . . 7 Utility 7 | . . . . . 3 2 . . 2 Weapon 9 | . . . . . 2 3 2 . 2 Highest Loss Streak 9 | . . . 1 1 9 6 1 . 3 To Critical Strikes . | . . . . . . . . . . Average Slot Usage (%) 87 | . 85 85 97 97 92 82 71 76 75 Engine 6 | . . . 9 9 6 6 7 7 . Treads 9 | . 14 14 18 14 9 4 . . 4 Leg 6 | . . . 10 . 5 8 . . 11 Wheel 1 | . 14 14 2 3 1 . . . . Hover 10 | . . . 12 32 11 6 . . 1 Flight 9 | . . . . . 13 13 23 23 15 Device 6 | . 14 14 11 9 4 . 7 7 6 Storage 9 | . 14 14 11 9 7 7 7 7 12 Processor 5 | . . . . . 7 12 7 7 7 Hackware 2 | . . . . . 7 6 . . . Protection 1 | . . . . . . . 7 7 1 Energy Gun 2 | . . . 7 3 3 . . . . Ballistic Gun 7 | . 28 28 14 . 6 5 3 7 3 Ballistic Cannon 2 | . . . . 14 . . . . . Launcher 1 | . . . . . 1 4 3 . . Naked Turns . | . . . . . . . . . . Heaviest Build 34 | 10 10 10 28 28 34 34 25 25 30 Greatest Support 51 | 10 10 20 43 43 51 30 22 22 37 Greatest Overweight (x) 10 | . . . 2 2 10 4 1 1 2 Average Overweight (x) . | . . . . 1 1 1 . 1 . Largest Inventory Capacity 10 | 8 8 8 10 10 10 10 10 10 10 Average Capacity 9 | 7 8 8 8 10 10 10 10 10 10 Most Carried 10 | 8 8 8 10 10 10 10 6 6 9 Average Carried 7 | 6 8 8 7 9 7 8 5 6 7 Final Capacity 10 | 8 8 8 10 10 10 10 10 10 10 Final Carried 10 | 8 8 8 10 10 8 5 6 6 8 Class Distribution -------------------- 58% | Mutant 40% | Scavenger-Mutant Dominant Class ---------------- Mutant | -10/Materials Mutant | -10/Mines Scavenger-Mutant | -9/Materials Mutant | -8/Materials Mutant | -7/Factory Scavenger-Mutant | -7/Lower Caves Mutant | -7/Lower Caves Mutant | -7/Data Miner Scavenger-Mutant | -6/Proximity Caves Resources | -11 -10 -10 -9 -8 -7 -7 -7 -7 -6 ----------- Run | Jun Mat Min Mat Mat Fac Low Low Dat Pro Matter Collected 2154 | 334 . 52 408 204 262 429 251 . 214 Remotely . | . . . . . . . . . . Salvage Created 2383 | 110 . 41 726 188 378 551 214 . 175 Parts 123 | 12 . 5 39 7 28 15 6 . 11 Haulers Intercepted 2 | . . . 1 1 . . . . . Recyclers Shooed . | . . . . . . . . . . Parts Field Recycled . | . . . . . . . . . . Retrieved Matter . | . . . . . . . . . . Parts Self-Destructed 23 | . . . . . . 7 5 . 11 Prevented 3 | . . . . . . 3 . . . Kills | -11 -10 -10 -9 -8 -7 -7 -7 -7 -6 ------- Run | Jun Mat Min Mat Mat Fac Low Low Dat Pro Combat Hostiles Destroyed 57 | . . 3 14 5 8 17 3 . 7 Melee 5 | . . . . . . . . . 5 Guns 28 | . . 3 14 . 6 4 . . 1 Cannons 9 | . . . . 5 1 3 . . . AOE 15 | . . . . . 1 10 3 . 1 Classes Destroyed 14 | 2 . 1 7 1 1 1 . . 1 Worker 2 | 1 . . . . 1 . . . . Tunneler 4 | 4 . . . . . . . . . Hauler 2 | . . . 1 1 . . . . . Recycler 1 | . . . 1 . . . . . . Operator 2 | . . . 1 1 . . . . . Drone 1 | . . . . . . . . . 1 Watcher 3 | . . . 2 . 1 . . . . Swarmer 21 | . . 3 4 . 3 5 3 . 3 Grunt 19 | . . . 7 4 1 6 . . 1 Brawler 2 | . . . . . . 2 . . . Duelist 2 | . . . 1 . 1 . . . . Sentry 5 | . . . 2 . 1 2 . . . Hunter 6 | . . . . 1 1 2 . . 2 Programmer 1 | . . . . . 1 . . . . Best Kill Streak 7 | 4 . 3 4 1 3 7 3 . 2 Combat Bots Only 7 | . . 3 4 1 3 7 3 . 2 Max Kills in Single Turn 4 | 1 . 1 2 1 1 4 2 . 1 Gunslinging 1 | . . . 1 . . . . . . Exploded 3 | . . . . . 1 3 2 . 1 Melee 1 | . . . . . . . . . 1 Uniques/NPCs Destroyed . | . . . . . . . . . . Combat | -11 -10 -10 -9 -8 -7 -7 -7 -7 -6 -------- Run | Jun Mat Min Mat Mat Fac Low Low Dat Pro Damage Taken 5291 | . . 146 592 443 1537 1086 261 . 1226 Core 927 | . . 43 119 51 218 231 53 . 212 Absorbed by Shields . | . . . . . . . . . . Redirected to Shielding 87 | . . . . . . . 25 . 62 Core Remaining (%) 85 | 100 . 82 70 90 . . . . . Volleys Fired 193 | 14 . 8 47 33 37 31 9 . 14 Largest 2 | 2 . 2 2 2 2 2 2 . 2 Hottest 114 | 40 . 40 98 114 100 104 64 . 72 Shots Fired 337 | 26 . 16 94 54 74 42 12 . 19 Gun 242 | 26 . 16 94 8 55 20 8 . 15 Cannon 68 | . . . . 46 11 11 . . . Launcher 27 | . . . . . 8 11 4 . 4 Special . | . . . . . . . . . . Kinetic 222 | 26 . 16 64 46 37 10 8 . 15 Thermal 88 | . . . 30 8 29 21 . . . Explosive 12 | . . . . . . 8 . . 4 Electromagnetic 15 | . . . . . 8 3 4 . . Robot Hit Streak 15 | 2 . 3 6 6 15 11 5 . 5 Robot Miss Streak 11 | 2 . 4 3 2 3 11 6 . 2 Penetration Max . | . . . . . . . . . . Secondary Targets 4 | . . . 3 . 1 . . . . Max Gunslinging Chain 1 | . . . 1 . 1 . . . . Shots Hit Robots 225 | 11 . 7 57 34 54 26 9 . 27 Core Hits 134 | 6 . 3 25 14 24 37 12 . 13 Critical Kills . | . . . . . . . . . . Critical Parts Destroyed 1 | . . . . . 1 . . . . Critical Strikes 5 | . . . . . 2 2 . . 1 Burn 3 | . . . . . 1 2 . . . Destroy 1 | . . . . . 1 . . . . Impale 1 | . . . . . . . . . 1 Melee Attacks 26 | . . . . . . . . . 26 Impact . | . . . . . . . . . . Slashing . | . . . . . . . . . . Piercing 26 | . . . . . . . . . 26 Sneak Attacks 1 | . . . . . . . . . 1 Combat Hostiles 1 | . . . . . . . . . 1 Follow-up Attacks . | . . . . . . . . . . Damage Inflicted 6338 | 149 . 109 976 704 1200 2004 233 . 963 Guns 2649 | 149 . 109 970 83 829 265 67 . 177 Cannons 1108 | . . . . 621 217 270 . . . Explosions 2107 | . . . . . 154 1469 166 . 318 Melee 468 | . . . . . . . . . 468 Ramming 6 | . . . 6 . . . . . . Kinetic 2327 | 149 . 109 573 621 536 95 67 . 177 Thermal 1555 | . . . 397 83 563 468 44 . . Explosive 1635 | . . . . . . 1317 . . 318 Electromagnetic 347 | . . . . . 101 124 122 . . Impact . | . . . . . . . . . . Slashing . | . . . . . . . . . . Piercing 468 | . . . . . . . . . 468 Highest Corruption 20 | . . . . . 7 17 20 20 20 Average Corruption 13 | . . . . . 6 9 18 20 20 Corruption Purged . | . . . . . . . . . . Corruption Blocked . | . . . . . . . . . . Effects 84 | . . . . . 7 27 23 2 25 Message Errors 19 | . . . . . 3 6 5 . 5 Matter Fused 20 | . . . . . . 6 8 . 6 Heat Flow Errors 14 | . . . . . 2 4 3 1 4 Energy Discharges 6 | . . . . . . 3 1 . 2 Parts Rejected 2 | . . . . . . . . . 2 Data Loss (minor) 8 | . . . . . 1 3 1 1 2 Data Loss (major) 6 | . . . . . 1 4 1 . . Misfires 3 | . . . . . . 1 2 . . Misdirections 1 | . . . . . . . 1 . . Weapon Failures 5 | . . . . . . . 1 . 4 Overload Shots . | . . . . . . . . . . Overflow Damage 48 | . . . . 12 6 29 . . 1 Projectiles 19 | . . . . 12 6 1 . . . Explosions 29 | . . . . . . 28 . . 1 Melee . | . . . . . . . . . . Knockbacks 13 | . . . . 13 . . . . . Impact . | . . . . . . . . . . Kinetic 10 | . . . . 10 . . . . . Secondary 3 | . . . . 3 . . . . . Self-Inflicted Damage 106 | . . . . . 19 28 46 . 13 Shots 7 | . . . . . 3 1 2 . 1 Rammed . | . . . . . . . . . . Targets Rammed 1 | . . . 1 . . . . . . Kicked 1 | . . . 1 . . . . . . Crushed . | . . . . . . . . . . Highest Temperature 402 | . . 1 360 402 388 324 223 197 265 Average Temperature 117 | . . 1 86 159 119 117 97 105 110 Received Heat Transfer 1128 | . . . 252 270 321 153 36 . 96 Effects 8 | . . . 1 5 2 . . . . Shutdowns 2 | . . . 1 1 . . . . . Energy Bleed 1 | . . . . 1 . . . . . Interference 4 | . . . . 2 2 . . . . Damage (minor) 1 | . . . . 1 . . . . . Siege Activations . | . . . . . . . . . . Robots Corrupted . | . . . . . . . . . . Combat Hostiles . | . . . . . . . . . . Parts Fried . | . . . . . . . . . . Impact Corruptions . | . . . . . . . . . . Robots Melted . | . . . . . . . . . . Combat Hostiles . | . . . . . . . . . . Parts Melted 3 | . . . 2 . 1 . . . . Heat Transferred 2653 | . . . 703 148 888 864 50 . . Parts Sabotaged . | . . . . . . . . . . Parts Stolen . | . . . . . . . . . . Parts Stripped . | . . . . . . . . . . Power Chain Reactions 5 | . . . . . 2 1 2 . . Missiles Intercepted . | . . . . . . . . . . Alert | -11 -10 -10 -9 -8 -7 -7 -7 -7 -6 ------- Run | Jun Mat Min Mat Mat Fac Low Low Dat Pro Peak Influence 332 | 25 16 86 332 199 147 . . . . Initial 76 | . 16 6 33 76 23 . . . . Average 123 | 7 16 57 212 98 80 . . . . Maximum Alert Level 1 | . . . 1 . . . . . . Low Security (%) 79 | 100 100 100 39 100 100 . . . . Level 1 20 | . . . 60 . . . . . . Level 2 . | . . . . . . . . . . Level 3 . | . . . . . . . . . . Level 4 . | . . . . . . . . . . Level 5 . | . . . . . . . . . . High Security . | . . . . . . . . . . Max Security . | . . . . . . . . . . Squads Dispatched 4 | . . . 1 . 3 . . . . Investigation . | . . . . . . . . . . Extermination 1 | . . . . . 1 . . . . Reinforcement 3 | . . . 1 . 2 . . . . Assault . | . . . . . . . . . . Garrison . | . . . . . . . . . . Intercept . | . . . . . . . . . . Searches Triggered . | . . . . . . . . . . Construction Impeded 1 | . . . . . 1 . . . . Haulers Reinforced . | . . . . . . . . . . Active Scanning Responses . | . . . . . . . . . . Cargo Convoy Interrupts . | . . . . . . . . . . Stealth | -11 -10 -10 -9 -8 -7 -7 -7 -7 -6 --------- Run | Jun Mat Min Mat Mat Fac Low Low Dat Pro Distress Signals 3 | . . . 3 . . . . . . Communications Jammed . | . . . . . . . . . . Distress Signals . | . . . . . . . . . . Times Spotted 88 | . 1 3 22 8 16 18 9 . 11 Peak Tracking Total 9 | . 3 3 4 2 4 9 4 . 3 Tactical Retreats 6 | . . . . 1 2 . 2 . 1 Traps | -11 -10 -10 -9 -8 -7 -7 -7 -7 -6 ------- Run | Jun Mat Min Mat Mat Fac Low Low Dat Pro Traps Triggered 4 | . . . . . 4 . . . . Indirectly . | . . . . . . . . . . Trap Hack Attempts . | . . . . . . . . . . Triggered . | . . . . . . . . . . Disarmed . | . . . . . . . . . . Reprogrammed . | . . . . . . . . . . Reused . | . . . . . . . . . . Traps Extracted . | . . . . . . . . . . Installed . | . . . . . . . . . . Triggered 2 | . . 1 . . . . . . 1 Exploded 1 | . . . . . 1 . . . . Machines | -11 -10 -10 -9 -8 -7 -7 -7 -7 -6 ---------- Run | Jun Mat Min Mat Mat Fac Low Low Dat Pro Machines Disabled 3 | . . . . . 1 2 . . . Max in Single Turn 2 | . . . . . 1 2 . . . Machines Repaired . | . . . . . . . . . . Machines Sabotaged . | . . . . . . . . . . Overloaded Fab Kills . | . . . . . . . . . . Hacking | -11 -10 -10 -9 -8 -7 -7 -7 -7 -6 --------- Run | Jun Mat Min Mat Mat Fac Low Low Dat Pro Machines Accessed 15 | . . . 3 5 3 . . 4 . Terminals 9 | . . . 3 5 1 . . . . Fabricators 2 | . . . . . 2 . . . . Repair Stations . | . . . . . . . . . . Recycling Units . | . . . . . . . . . . Scanalyzers . | . . . . . . . . . . Garrison Access . | . . . . . . . . . . Total Hacks 63 | . . . 13 17 4 . . 29 . Successful 46 | . . . 7 9 1 . . 29 . Failed 17 | . . . 6 8 3 . . . . Catastrophic 4 | . . . 1 1 2 . . . . Database Lockouts . | . . . . . . . . . . Manual 22 | . . . 6 9 4 . . 3 . Terminals 31 | . . . 13 17 1 . . . . Fabricators 3 | . . . . . 3 . . . . Repair Stations . | . . . . . . . . . . Recycling Units . | . . . . . . . . . . Scanalyzers . | . . . . . . . . . . Garrison Access . | . . . . . . . . . . Terminal Hacks 42 | . . . 5 8 . . . 29 . Record 15 | . . . . 4 . . . 11 . Part Schematic 9 | . . . . . . . . 9 . Robot Schematic 6 | . . . . . . . . 6 . Prototype ID Bank 3 | . . . . . . . . 3 . Alert Level 4 | . . . 2 2 . . . . . Unreport Threat 1 | . . . 1 . . . . . . Locate Traps 2 | . . . 1 1 . . . . . Zone Layout 2 | . . . 1 1 . . . . . Fabricator Hacks . | . . . . . . . . . . Repair Station Hacks . | . . . . . . . . . . Recycling Unit Hacks . | . . . . . . . . . . Scanalyzer . | . . . . . . . . . . Garrison Access Hacks . | . . . . . . . . . . Unauthorized Hacks 4 | . . . 2 1 1 . . . . Terminals 4 | . . . 2 1 1 . . . . Track 3 | . . . 1 1 1 . . . . Operators 1 | . . . 1 . . . . . . Fabricators . | . . . . . . . . . . Repair Stations . | . . . . . . . . . . Recycling Units . | . . . . . . . . . . Scanalyzers . | . . . . . . . . . . Garrison Access . | . . . . . . . . . . Data Cores Recovered 1 | . . . . 1 . . . . . Used 1 | . . . . 1 . . . . . Hacking Detections 10 | . . . 3 5 2 . . . . Full Trace Events . | . . . . . . . . . . Feedback Events . | . . . . . . . . . . Feedback Blocked . | . . . . . . . . . . Robot Schematics Acquired 6 | . . . . . . . . 6 . Robots Built . | . . . . . . . . . . Authchips . | . . . . . . . . . . Time . | . . . . . . . . . . Total Robot Build Rating . | . . . . . . . . . . Part Schematics Acquired 9 | . . . . . . . . 9 . Parts Built . | . . . . . . . . . . Authchips . | . . . . . . . . . . Time . | . . . . . . . . . . Total Part Build Rating . | . . . . . . . . . . Parts Repaired . | . . . . . . . . . . Time . | . . . . . . . . . . Parts Recycled . | . . . . . . . . . . Recycled Matter . | . . . . . . . . . . Retrieved Matter . | . . . . . . . . . . Retrieved Components . | . . . . . . . . . . Parts Scanalyzed . | . . . . . . . . . . Part Schematics Acquired . | . . . . . . . . . . Parts Damaged . | . . . . . . . . . . Bothacking | -11 -10 -10 -9 -8 -7 -7 -7 -7 -6 ------------ Run | Jun Mat Min Mat Mat Fac Low Low Dat Pro Used RIF Installer . | . . . . . . . . . . Robots Hacked . | . . . . . . . . . . Non-combat . | . . . . . . . . . . Combat . | . . . . . . . . . . Robot Hacks Applied . | . . . . . . . . . . Relay Couplers Released . | . . . . . . . . . . Fabnet Peak Effective % . | . . . . . . . . . . Robots Rewired . | . . . . . . . . . . Allies Hacked . | . . . . . . . . . . Hacks Repelled . | . . . . . . . . . . Allies | -11 -10 -10 -9 -8 -7 -7 -7 -7 -6 -------- Run | Jun Mat Min Mat Mat Fac Low Low Dat Pro Total Allies 3 | . . 2 . . . . . . 1 Largest Group 2 | . . 2 2 . . . . . 1 Highest-Rated Group 96 | . . 54 54 . . . . . 96 Highest-Rated Ally 96 | . . 31 31 . . . . . 96 Total Orders . | . . . . . . . . . . Ally Attacks 16 | . . . 10 . . . . . 6 Total Damage 428 | . . . 169 . . . . . 259 Kills 4 | . . . 4 . . . . . . Allies Corrupted . | . . . . . . . . . . Allies Melted . | . . . . . . . . . . Intel | -11 -10 -10 -9 -8 -7 -7 -7 -7 -6 ------- Run | Jun Mat Min Mat Mat Fac Low Low Dat Pro Robot Analysis Total . | . . . . . . . . . . Derelict Logs Recovered 5 | . . 1 . . . 2 1 . 1 Drone Launches . | . . . . . . . . . . Drone Recoveries . | . . . . . . . . . . Exploration | -11 -10 -10 -9 -8 -7 -7 -7 -7 -6 ------------- Run | Jun Mat Min Mat Mat Fac Low Low Dat Pro Turns Passed 4170 | 119 32 156 788 606 666 778 443 93 489 Spaces Moved 2714 | 76 40 132 454 383 366 437 418 88 320 Core 27 | 13 . . . . 6 8 . . . Treads 181 | . . 5 133 29 14 . . . . Legs 532 | . . . 122 . 10 204 . . 196 Wheels 520 | 63 40 127 38 158 94 . . . . Hover 593 | . . . 161 196 136 100 . . . Flight 861 | . . . . . 106 125 418 88 124 Fastest Speed 29 | 50 80 80 72 62 45 104 29 104 29 Average Speed 113 | 74 80 83 114 106 123 154 93 104 107 Slowest Speed 550 | 80 80 160 260 160 550 355 104 104 205 Overloaded Moves . | . . . . . . . . . . Propulsion Burnouts . | . . . . . . . . . . Robots Hopped . | . . . . . . . . . . Cave-ins Triggered . | . . . . . . . . . . Exploration Rate (%) 35 | 4 15 35 37 30 13 69 53 75 27 Regions Visited 9 Branch Regions 5 Pre-discovered Areas 1 | . . . . . . . . 1 . Known Exits Taken . | . . . . . . . . . . Unknown Exits Taken 9 | 1 1 1 1 1 1 1 1 1 . Scrap Searched 6 | . . 1 . . . 3 2 . . Spaces Dug . | . . . . . . . . . . Terrain Destroyed 149 | . . . . . 5 76 10 . 58 Melee . | . . . . . . . . . . Projectile 3 | . . . . . 1 . . . 2 AOE 146 | . . . . . 4 76 10 . 56 Terrain Rammed . | . . . . . . . . . . Walls Destroyed . | . . . . . . . . . . Machines Disabled . | . . . . . . . . . . Actions | -11 -10 -10 -9 -8 -7 -7 -7 -7 -6 --------- Run | Jun Mat Min Mat Mat Fac Low Low Dat Pro Total 3445 | 111 39 162 626 530 517 500 458 89 413 Wait 308 | 3 . 23 77 73 72 5 23 2 30 Move 2705 | 75 39 131 453 382 365 436 417 87 320 Hop . | . . . . . . . . . . Pick Up 79 | 13 . . 12 13 13 11 5 . 12 Fast Attach 13 | 1 . . 4 3 5 . . . . Attach 58 | 5 . . 5 5 16 13 4 . 10 Detach 3 | . . . . 1 1 1 . . . Swap 29 | . . . 14 7 6 1 . . 1 Drop 30 | . . . 13 13 2 2 . . . Fire 193 | 14 . 8 47 33 37 31 9 . 14 Melee 26 | . . . . . . . . . 26 Ram . | . . . . . . . . . . Kick 1 | . . . 1 . . . . . . Crush . | . . . . . . . . . . Escape Stasis . | . . . . . . . . . . Rewire . | . . . . . . . . . . Trap . | . . . . . . . . . . Miscellaneous . | . . . . . . . . . . Route ------- -11/Junkyard -10/Materials -10/Mines -9/Materials -8/Materials -7/Factory -7/Lower Caves -7/Lower Caves -7/Data Miner -6/Proximity Caves History --------- Turn | Location | Event 10 | -11/Junkyard | Discovered new exit (range 13) 120 | -11/Junkyard | Entered Materials 130 | -10/Materials | Discovered new exit (range 15) 152 | -10/Materials | Entered Mines 280 | -10/Mines | Discovered new exit (range 8) 308 | -10/Mines | Entered Materials 308 | -9/Materials | Accompanied by 2 allies 308 | -9/Materials | Evolved 2 slots: Propulsion x2 316 | -9/Materials | Led the pair of lost Derelicts to an unsafe place 330 | -9/Materials | Build established: Mutant 903 | -9/Materials | Build established: Scavenger-Mutant 1088 | -9/Materials | Discovered new exit (range 4) 1096 | -9/Materials | Entered another Materials area 1096 | -8/Materials | Evolved 2 slots: Propulsion x2 1620 | -8/Materials | Build established: Mutant 1699 | -8/Materials | Discovered new exit (range 3) 1702 | -8/Materials | Entered Factory 1702 | -7/Factory | Evolved 2 slots: Utility x2 1970 | -7/Factory | Lost 9 parts (1p5n2u1w) 2193 | -7/Factory | Noticed a derelict Sapper rigging charges 2279 | -7/Factory | Lost 5 parts (3n1u1w) 2344 | -7/Factory | Discovered new exit (range 16) 2368 | -7/Factory | Entered Lower Caves 2531 | -7/Lower Caves | Learned 12 Factory zone layouts 2532 | -7/Lower Caves | Build established: Scavenger-Mutant 2711 | -7/Lower Caves | Attracted the attention of an 0b10 checkpoint 2835 | -7/Lower Caves | Attracted the attention of an 0b10 outpost 2855 | -7/Lower Caves | System corruption reached 10% 2863 | -7/Lower Caves | Destroyed 7 combat bots 2864 | -7/Lower Caves | Core integrity fell below 50% 2902 | -7/Lower Caves | Lost 6 parts (2n1u3w) 2917 | -7/Lower Caves | Learned location of 1 exit from Factory 3110 | -7/Lower Caves | Lost 4 parts (1p2n1u) 3132 | -7/Lower Caves | Discovered new exit (range 15) 3144 | -7/Lower Caves | Build established: Mutant 3146 | -7/Lower Caves | Entered another Lower Caves area 3363 | -7/Lower Caves | Attracted the attention of an 0b10 checkpoint 3373 | -7/Lower Caves | Encountered a Warlord checkpoint 3451 | -7/Lower Caves | Spotted B-75 Beast 3562 | -7/Lower Caves | Discovered new exit (range 8) 3574 | -7/Lower Caves | Learned Factory stockpile data 3589 | -7/Lower Caves | Entered Data Miner 3589 | -7/Data Miner | Discovered new exit (range 6) 3609 | -7/Data Miner | Met Data Miner 3641 | -7/Data Miner | Learned location of Section 7 (-3) 3641 | -7/Data Miner | Acquired the access code to Warlord's prototype stash 3659 | -7/Data Miner | Received God Mode back door access code from Data Miner 3682 | -7/Data Miner | Entered Proximity Caves 3685 | -6/Proximity Caves | Spotter reported a threat 3785 | -6/Proximity Caves | Spotted B-75 Beast 3787 | -6/Proximity Caves | Escorted by Enhanced Grunt 3798 | -6/Proximity Caves | Spotter reported a threat 3848 | -6/Proximity Caves | Lost 3 parts (1n1u1w) 3985 | -6/Proximity Caves | Lost 3 parts (1p2n) 4055 | -6/Proximity Caves | Build established: Scavenger-Mutant 4063 | -6/Proximity Caves | Learned 4 Factory zone layouts 4070 | -6/Proximity Caves | Core integrity fell below 20% 4171 | -6/Proximity Caves | Destroyed by H-66 Slayer with Gauss Rifle Last Messages --------------- 04110_ VTOL Module destroyed. 04116_ System corrupted: Enh. Flexi-carbon Leg rejected. 04117_ VTOL Module fries itself beyond repair. 04118_ Lgt. Nuclear Core fries itself beyond repair. 04126_ VTOL Module fries itself beyond repair. 04126_ S-27 Virus destroyed. 04133_ Acquired Enh. Flexi-carbon Leg. 04137_ N/L9VDGORUIZZL6K/Q>FAOLEJ%FLHHTYKRALSTL 04138_ Acquired 10 matter. 04146_ Slug penetrates Wall. 04155_ System corrupted: Matter fused (-5). 04155_ Penetrated by Slug. 04155_ Imp. Medium Treads destroyed. 04158_ Penetrated by Slug. 04158_ Cld. VTOL Module destroyed. 04162_ Penetrated by Slug. 04162_ Flexi-carbon Leg destroyed. 04165_ Penetrated by Slug. 04168_ Slug penetrates Wall. 04168_ Penetrated by Slug. Map ----- +----------------------------------------------------+ | ?????????????????????????????????????????????????? | | ?????????????????????????????????????????????????? | | ?????????????????????????????????????????????????? | | ?????????????????????????????????????????????????? | | #????????????????????????????????????????????????? | | "????????????????????????????????????????????????? | | "????????????????????????????????????????????????? | | ##???????????????????????????????????????????????? | | "##??????????????????????????????????????????????? | | ##?????????????????????????????????????????????? | | ##????????????????????????????????????????????? | | ####???????????????####??????????????????????? | | ## ##????########### ##?????????????????????? | | ?## ##???# ####??????????????????? | | ??# ##??# #### #??????????????????? | | ??## #### #??## ## #??????????????????? | | ???# ### #???##%## #???#??????????????????? | | ???# #?## #####????# ## #??????????????????????? | | ???#%#######????????# ## #??????????????????????? | | ???# #??????????# ## #??????????????????????? | | ???##### #??????????# ## #??????????????????????? | | ????????????????????#% #??????????????????????? | | ????????????????????#### ##?????????????????????? | | ??????????????????????## #?????????????????????? | | ?????????????????????## #?????????????????????? | | ?????????????????????# @ #?????????????????????? | | #??????????????# h##?????????????????????? | | #????????????# ###??????????????????????? | | ????????? #?????????????????????????? | | ???????#### ??????????????????????????? | | ?????????# ??????????????????????????? | | ### ????????# ??????????????????????????? | | ##??? ???????## ???????????????????????????? | | ?????? ????????### ###???????????????????????????? | | ????????????????? ??????????????????????????????? | | ???????????????? ???????????????????????????????? | | ???????????????##????????????????????????????????? | | ?????????????????????????????????????????????????? | | ?????????????????????????????????????????????????? | | ?????????????????????????????????????????????????? | | ?????????????????????????????????????????????????? | | ?????????????????????????????????????????????????? | | ?????????????????????????????????????????????????? | | ?????????????????????????????????????????????????? | | ?????????????????????????????????????????????????? | | ?????????????????????????????????????????????????? | | ?????????????????????????????????????????????????? | | ?????????????????????????????????????????????????? | | ?????????????????????????????????????????????????? | | ?????????????????????????????????????????????????? | +----------------------------------------------------+ Best States ------------- Heat Dissipation 34 Energy Generation 18 Energy Capacity 660 Matter Stores 300 Matter Capacity 300 Sight Range 20 Terrain Scan Density 10 Additional Mass Support 9 Propulsion Shielding 66 Evasion (%) 64 Targeting Accuracy 6 Recoil Reduction 2 Kinecelleration 30 Defensive Hacking 10 Item Schematics ----------------- Combat Drone Bay | -7/Data Miner | Free Lgt. Regenerative Plating | -7/Data Miner | Free Cld. Cesium-ion Thruster | -7/Data Miner | Free Gravity Neutralizer | -7/Data Miner | Free Com. Ion Cannon | -7/Data Miner | Free Antigrav System | -7/Data Miner | Free Imp. Recalibrator | -7/Data Miner | Free Lance | -7/Data Miner | Free Imp. Heavy Treads | -7/Data Miner | Free Robot Schematics ------------------ A-15 Conveyor | -7/Data Miner | Free G-47 Trooper | -7/Data Miner | Free Y-54 Guardian | -7/Data Miner | Free L-41 Fighter | -7/Data Miner | Free B-60 Warrior | -7/Data Miner | Free H-66 Slayer | -7/Data Miner | Free Fabricated ------------ Nothing Alien Tech Used ----------------- None Achievements -------------- None Challenges ------------ None Game ------ Seed UtilityPlasmaSubcomponent Manual? 0 Play Time 01:19:12 Cumulative 91.8 hours Start 2023.08.27 @ 13:49:17 End 2023.08.27 @ 15:38:26 Sessions 1 Manual Loads 0 Difficulty Rogue Special Mode None Game No. 111 Rogue 111 Adventurer 0 Explorer 0 Win Type - Total 0 Types 0/0/0/0/0/0/0/0/0 Lore% 29 Gallery% 44 Achievement% 30 Wizard Run 0 Options --------- ASCII 0 Keyboard 0 Movement Mouse Keybinds 0 Fullscreen 1 Font 24/Smallcaps Map View 76x50 Tactical HUD 1 Map Filters NONE Filters NONE Steam 1 RUN: 4a28106e-df10-485d-91fb-10df71ea8cc9